bitfinex/quotes_SOLUSD_20241216
["timestamp","ask_amount","ask_price","bid_price","bid_amount"]
[1734349108181,14.18373549,215.43,215.36,104.18373549]
[1734349108376,3.37192994,215.42,215.36,104.18373549]
[1734349108574,3.37254627,215.41,215.36,104.18373549]
[1734349108962,14.18373549,215.43,215.36,104.18373549]
[1734349108963,3.37254627,215.4,215.36,104.18373549]
[1734349109162,3.37254627,215.39,215.36,104.18373549]
[1734349109379,14.18373549,215.43,215.36,104.18373549]
[1734349109595,3.37255768,215.42,215.36,104.18373549]
[1734349109885,3.37255768,215.41,215.36,104.18373549]
[1734349110079,3.37255768,215.4,215.37,44.18373549]
[1734349110276,14.18373549,215.45,215.38,14.18373549]
[1734349110585,3.37282391,215.44,215.38,14.18373549]
[1734349110762,3.37282391,215.43,215.38,14.18373549]
[1734349110962,3.37282391,215.42,215.38,14.18373549]
[1734349111275,3.37282391,215.41,215.37,30.0]
[1734349111590,3.37270991,215.4,215.37,30.0]
[1734349111886,3.37270991,215.39,215.37,30.0]
[1734349112183,3.37270991,215.38,215.37,30.0]
[1734349112871,14.18373549,215.43,215.37,30.0]
[1734349113077,17.55664309,215.42,215.37,30.0]
[1734349113282,17.55664309,215.41,215.37,30.0]
[1734349113497,3.3729076,215.4,215.37,30.0]
[1734349114214,17.55664309,215.4,215.37,30.0]
[1734349114388,3.3729076,215.39,215.37,30.0]
[1734349114716,3.3729076,215.38,215.37,30.0]
[1734349115215,3.3729076,215.4,215.37,30.0]
[1734349115426,3.3729076,215.39,215.37,30.0]
[1734349115720,3.3729076,215.38,215.37,30.0]
[1734349115919,3.3729076,215.4,215.37,30.0]
[1734349116123,3.3729076,215.39,215.37,30.0]
[1734349116303,3.3729076,215.38,215.37,30.0]
[1734349116613,3.3729076,215.4,215.37,30.0]
[1734349116819,3.3729076,215.39,215.37,30.0]
[1734349117025,3.3729076,215.38,215.37,30.0]
[1734349117709,9.10161714,215.42,215.37,30.0]
[1734349117710,3.3729076,215.41,215.37,30.0]
[1734349118023,3.37967582,215.4,215.37,30.0]
[1734349118189,20.0,215.46,215.37,39.10161714]
[1734349118190,3.37967582,215.39,215.37,39.10161714]
[1734349118395,3.37967582,215.38,215.37,39.10161714]
[1734349118588,3.37967582,215.43,215.37,39.10161714]
[1734349118914,9.10161714,215.44,215.37,39.10161714]
[1734349118915,3.37967582,215.42,215.37,39.10161714]
[1734349119097,3.37967582,215.41,215.37,39.10161714]
[1734349119298,3.37967582,215.4,215.38,9.10161714]
[1734349119501,14.07345449,215.55,215.39,9.10161714]
[1734349119502,9.07345449,215.55,215.39,9.10161714]
[1734349119696,9.10161714,215.46,215.39,9.10161714]
[1734349120009,3.38424743,215.45,215.4,9.10161714]
[1734349120212,3.38424743,215.44,215.4,9.10161714]
[1734349120415,3.38424743,215.43,215.4,9.10161714]
[1734349120626,3.38424743,215.42,215.4,9.10161714]
[1734349120823,3.38424743,215.41,215.4,9.10161714]
[1734349121114,3.38424743,215.41,215.4,10.66151714]
[1734349121329,3.38424743,215.41,215.4,17.38690714]
[1734349121613,3.38424743,215.41,215.4,8.1598]
[1734349124602,3.38424743,215.41,215.4,17.38690714]
[1734349125390,3.38424743,215.41,215.4,41.16379114]
[1734349125611,3.39072883,215.53,215.41,0.12549]
[1734349125816,12.49236331,215.52,215.45,9.10161714]
[1734349126027,3.39074617,215.51,215.45,9.10161714]
[1734349126317,3.39074617,215.5,215.45,9.10161714]
[1734349126504,7.6926,215.57,215.45,9.10161714]
[1734349126709,9.10161714,215.52,215.45,9.10161714]
[1734349127298,9.10161714,215.52,215.44,9.10161714]
[1734349127619,9.10161714,215.51,215.44,9.10161714]
[1734349127925,9.10161714,215.51,215.41,0.82151099]
[1734349127926,9.10161714,215.53,215.46,9.10161714]
[1734349128087,9.10161714,215.54,215.47,9.10161714]
[1734349128517,20.0,215.58,215.48,1.5223]
[1734349128705,9.10161714,215.55,215.48,1.5223]
[1734349128909,20.0,215.57,215.48,10.62391714]
[1734349129093,9.10161714,215.55,215.48,10.62391714]
[1734349129619,6.40445303,215.61,215.49,9.10161714]
[1734349129833,9.10161714,215.56,215.49,9.10161714]
[1734349130195,6.40445303,215.61,215.5,9.10161714]
[1734349130397,9.10161714,215.57,215.5,9.10161714]
[1734349130704,6.6503,215.63,215.51,9.10161714]
[1734349130705,9.10161714,215.58,215.51,9.10161714]
[1734349132421,20.0,215.63,215.51,9.10161714]
[1734349132732,9.10161714,215.58,215.51,9.10161714]
[1734349133932,9.10161714,215.57,215.51,9.10161714]
[1734349134100,9.10161714,215.57,215.49,6.97872079]
[1734349134297,9.10161714,215.57,215.51,9.10161714]
[1734349134823,8.60161714,215.58,215.52,9.10161714]
[1734349135187,9.10161714,215.59,215.52,9.10161714]
[1734349135388,20.0,215.63,215.52,9.10161714]
[1734349135718,6.40445303,215.66,215.55,9.10161714]
[1734349136014,6.40445303,215.66,215.49,43.38518935]
[1734349136015,6.5202,215.68,215.56,9.10161714]
[1734349136217,4.58390652,215.69,215.57,1.5496]
[1734349136403,9.10161714,215.63,215.57,1.5496]
[1734349136722,16.65858114,215.72,215.6,9.10161714]
[1734349136942,7.55696414,215.72,215.59,15.44271714]
[1734349137094,9.10161714,215.65,215.59,15.44271714]
[1734349137291,9.10161714,215.66,215.6,9.10161714]
[1734349137490,9.10161714,215.67,215.6,9.10161714]
[1734349137808,9.10161714,215.68,215.61,9.10161714]
[1734349138427,4.58390652,215.75,215.62,9.22710714]
[1734349138605,4.58390652,215.75,215.59,6.3411]
[1734349138606,9.10161714,215.71,215.65,9.10161714]
[1734349138807,9.10161714,215.71,215.66,1.6584]
[1734349139696,18.34012014,215.8,215.66,1.6584]
[1734349139896,9.10161714,215.71,215.66,1.6584]
[1734349140108,14.18153295,215.71,215.66,1.6584]
[1734349140321,14.18153295,215.72,215.66,1.6584]
[1734349140512,14.18153295,215.72,215.66,15.83993295]
[1734349141023,14.18153295,215.74,215.67,14.18153295]
[1734349141916,11.00553158,215.88,215.72,14.18153295]
[1734349142129,14.18153295,215.78,215.71,14.18153295]
[1734349143327,14.18153295,215.79,215.72,14.30702295]
[1734349143823,20.0,215.84,215.74,15.75493295]
[1734349144140,5.71459532,215.87,215.74,15.75493295]
[1734349144141,14.18153295,215.81,215.74,15.75493295]
[1734349144440,14.18153295,215.82,215.75,14.18153295]
[1734349144637,14.18153295,215.82,215.74,1.5734]
[1734349144796,5.71459532,215.87,215.77,14.18153295]
[1734349145001,14.18153295,215.85,215.78,14.18153295]
[1734349145442,5.71459532,215.94,215.8,14.18153295]
[1734349145721,14.18153295,215.87,215.81,14.18153295]
[1734349145906,5.71459532,215.94,215.82,14.18153295]
[1734349146113,16.4768554,215.95,215.82,14.18153295]
[1734349146304,14.18153295,215.88,215.81,14.18153295]
[1734349146499,5.7384274,215.95,215.79,20.38913295]
[1734349146500,14.18153295,215.86,215.79,20.38913295]
[1734349146717,14.18153295,215.86,215.8,14.18153295]
[1734349147095,14.18153295,215.87,215.8,14.18153295]
[1734349147317,5.7384274,215.95,215.79,6.2076]
[1734349147318,14.18153295,215.88,215.82,14.18153295]
[1734349148033,14.18153295,215.89,215.83,1.6353]
[1734349148403,14.18153295,215.91,215.84,14.18153295]
[1734349148702,14.18153295,215.92,215.86,14.18153295]
[1734349149125,5.0,216.03,215.87,14.18153295]
[1734349149126,14.18153295,215.93,215.87,14.18153295]
[1734349150034,14.18153295,215.94,215.87,14.18153295]
[1734349150241,5.0,216.06,215.89,14.18153295]
[1734349150407,14.18153295,215.96,215.9,14.18153295]
[1734349151124,14.18153295,215.99,215.93,14.18153295]
[1734349151449,12.68153295,215.98,215.92,14.18153295]
[1734349151620,14.18153295,215.99,215.93,14.18153295]
[1734349152043,14.18153295,215.99,215.92,14.18153295]
[1734349152248,14.18153295,215.96,215.91,1.6084]
[1734349152434,14.18153295,215.93,215.91,1.6084]
[1734349152645,14.18153295,215.92,215.88,6.6126]
[1734349153030,14.18153295,215.93,215.88,6.6126]
[1734349153435,14.18153295,215.94,215.88,6.6126]
[1734349153718,14.18153295,215.92,215.88,6.6126]
[1734349153943,14.18153295,215.93,215.88,6.6126]
[1734349154426,14.18153295,215.95,215.89,14.18153295]
[1734349154620,14.18153295,215.96,215.89,14.18153295]
[1734349155519,14.18153295,215.97,215.9,14.18153295]
[1734349155722,14.18153295,215.96,215.89,14.18153295]
[1734349155937,14.18153295,215.95,215.88,20.79413295]
[1734349156250,14.18153295,216.04,215.88,6.6126]
[1734349156251,14.18153295,215.93,215.88,6.6126]
[1734349156419,14.18153295,215.94,215.88,6.6126]
[1734349157220,14.18153295,215.92,215.88,6.6126]
[1734349157427,14.181533,216.05,215.86,1.6084]
[1734349157428,14.18153295,215.89,215.86,1.6084]
[1734349157642,14.18153295,215.87,215.83,6.6126]
[1734349157950,14.18153295,215.86,215.83,6.6126]
[1734349158129,14.18153295,215.87,215.83,6.6126]
[1734349158651,14.18153295,215.84,215.83,6.6126]
[1734349158855,14.18153295,215.84,215.81,1.6084]
[1734349159031,14.18153295,215.82,215.78,6.6126]
[1734349159231,14.18153295,215.8,215.78,6.6126]
[1734349159550,14.18153295,215.8,215.76,1.5591]
[1734349159923,14.18153295,215.81,215.76,1.5591]
[1734349160346,14.18153295,215.78,215.76,1.5591]
[1734349160549,14.18153295,215.77,215.73,6.6269]
[1734349160751,14.18153295,215.82,215.73,6.6269]
[1734349160752,14.18153295,215.75,215.73,6.6269]
[1734349161242,14.18153295,215.74,215.7,1.5591]
[1734349161430,14.18153295,215.73,215.7,1.5591]
[1734349161833,14.18153295,215.74,215.7,1.5591]
[1734349162026,14.18153295,215.73,215.7,1.5591]
[1734349163253,14.18153295,215.75,215.7,1.5591]
[1734349163448,14.18153295,215.82,215.7,15.74063295]
[1734349163449,14.18153295,215.77,215.7,15.74063295]
[1734349163755,14.18153295,215.8,215.73,14.18153295]
[1734349163952,14.18153295,215.79,215.72,14.18153295]
[1734349164248,14.18153295,215.76,215.7,1.5591]
[1734349164450,14.18153295,215.74,215.7,1.5591]
[1734349164661,14.18153295,215.72,215.7,1.5591]
[1734349164864,14.18153295,215.72,215.68,6.5489]
[1734349165240,14.18153295,215.74,215.68,6.5489]
[1734349166942,20.0,215.73,215.69,14.18153295]
[1734349167130,20.0,215.73,215.68,20.73043295]
[1734349168534,20.0,215.79,215.68,6.5489]
[1734349168839,14.18153295,215.74,215.68,6.5489]
[1734349171538,14.18153295,215.71,215.64,1.6385]
[1734349171741,14.18153295,215.7,215.64,1.6385]
[1734349172240,14.18153295,215.72,215.64,15.82003295]
[1734349172762,14.18153295,215.71,215.64,15.82003295]
[1734349173536,14.18153295,215.71,215.65,14.18153295]
[1734349174165,14.18153295,215.73,215.66,14.18153295]
[1734349174346,14.18153295,215.73,215.67,14.18153295]
[1734349174549,14.18153295,215.73,215.66,14.18153295]
[1734349175160,14.18153295,215.74,215.68,14.18153295]
[1734349175843,14.18153295,215.73,215.66,14.18153295]
[1734349176472,14.18153295,215.74,215.67,14.18153295]
[1734349176641,14.181533,215.83,215.69,0.12549]
[1734349176843,8.1378,215.87,215.73,14.18153295]
[1734349177047,14.18153295,215.79,215.73,14.18153295]
[1734349177246,14.18153295,215.79,215.74,1.6211]
[1734349177546,14.18153295,215.8,215.74,1.6211]
[1734349178342,14.18153295,215.77,215.74,1.6211]
[1734349178556,14.18153295,215.75,215.74,1.6211]
[1734349178755,14.18153295,215.75,215.68,20.40753295]
[1734349178756,14.18153295,215.75,215.69,1.6211]
[1734349179049,14.18153295,215.73,215.69,1.6211]
[1734349180069,14.18153295,215.75,215.69,1.6211]
[1734349181075,14.18153295,215.77,215.7,14.18153295]
[1734349181663,14.18153295,215.77,215.71,14.18153295]
[1734349181853,14.18153295,215.77,215.7,38.08390695]
[1734349182061,14.18153295,215.76,215.69,1.6211]
[1734349182959,14.18153295,215.73,215.69,1.6211]
[1734349183293,14.18153295,215.71,215.69,1.6211]
[1734349184278,14.18153295,215.7,215.69,1.6211]
[1734349184597,14.18153295,215.7,215.64,1.5126]
[1734349184752,14.18153295,215.65,215.62,6.5827]
[1734349184956,14.18153295,215.63,215.59,1.5592]
[1734349185271,14.18153295,215.62,215.59,1.5592]
[1734349185453,14.18153295,215.63,215.59,1.5592]
[1734349185776,14.18153295,215.64,215.59,1.5592]
[1734349186680,14.18153295,215.62,215.59,1.5592]
[1734349186871,14.18153295,215.61,215.59,1.5592]
[1734349187073,14.18153295,215.6,215.53,1.5592]
[1734349187277,14.18153295,215.57,215.53,1.5592]
[1734349187581,14.18153295,215.55,215.53,1.5592]
[1734349188299,14.18153295,215.54,215.53,1.5592]
[1734349188785,14.18153295,215.54,215.5,6.0645]
[1734349189193,20.0,215.64,215.53,14.18153295]
[1734349189373,20.0,215.64,215.55,14.18153295]
[1734349189374,14.18153295,215.62,215.55,14.18153295]
[1734349189563,14.18153295,215.61,215.54,14.87725068]
[1734349189874,20.0,215.64,215.54,14.87725068]
[1734349189875,14.18153295,215.6,215.54,23.776884]
[1734349190462,14.18153295,215.61,215.54,14.18153295]
[1734349191876,20.0,215.64,215.52,14.18153295]
[1734349191877,14.18153295,215.6,215.52,14.18153295]
[1734349192075,14.18153295,215.59,215.52,23.776884]
[1734349192390,14.18153295,215.59,215.52,14.18153295]
[1734349192769,14.18153295,215.61,215.53,38.08390695]
[1734349192968,14.18153295,215.61,215.54,14.18153295]
[1734349193171,20.0,215.64,215.54,14.18153295]
[1734349193486,14.18153295,215.61,215.54,14.18153295]
[1734349193974,14.18153295,215.6,215.53,38.08390695]
[1734349194971,14.18153295,215.61,215.54,14.18153295]
[1734349195169,20.0,215.64,215.53,23.902374]
[1734349195170,14.18153295,215.6,215.53,38.08390695]
[1734349195378,14.18153295,215.61,215.53,38.08390695]
[1734349196276,14.18153295,215.56,215.5,6.0645]
[1734349196595,14.18153295,215.55,215.5,6.0645]
[1734349196763,14.18153295,215.54,215.46,14.18153295]
[1734349197786,14.18153295,215.55,215.47,14.18153295]
[1734349198194,14.18153295,215.56,215.48,15.74073295]
[1734349200290,14.18153295,215.58,215.51,14.18153295]
[1734349200487,14.18153295,215.59,215.52,14.18153295]
[1734349201194,14.18153295,215.6,215.53,14.18153295]
[1734349202293,14.18153295,215.6,215.49,0.82136597]
[1734349202294,14.18153295,215.61,215.54,14.18153295]
[1734349202487,14.18153295,215.59,215.52,14.18153295]
[1734349202683,14.18153295,215.57,215.5,14.18153295]
[1734349203372,14.18153295,215.56,215.49,14.18153295]
[1734349203575,3.00403158,215.7,215.48,1.5592]
[1734349203576,14.18153295,215.55,215.48,15.74073295]
[1734349203898,14.18153295,215.55,215.49,0.12549]
[1734349204081,14.18153295,215.54,215.48,1.5592]
[1734349204282,14.18153295,215.55,215.48,15.74073295]
[1734349205496,14.18153295,215.6,215.43,2.7699772]
[1734349205497,14.18153295,215.49,215.43,1.6495]
[1734349205707,14.18153295,215.44,215.39,6.6395]
[1734349206000,14.18153295,215.44,215.38,1.6495]
[1734349206001,14.18153295,215.42,215.38,1.6495]
[1734349206184,14.18153295,215.44,215.38,1.6495]
[1734349206384,20.0,215.49,215.38,1.6495]
[1734349206385,14.18153295,215.45,215.38,1.6495]
[1734349206581,14.18153295,215.46,215.38,15.83103295]
[1734349206891,14.18153295,215.46,215.39,14.18153295]
[1734349207092,14.18153295,215.47,215.4,14.18153295]
[1734349208175,14.18153295,215.48,215.4,14.18153295]
[1734349208375,14.18153295,215.47,215.4,14.18153295]
[1734349208897,14.18153295,215.46,215.39,14.87770249]
[1734349209075,14.18153295,215.47,215.4,14.18153295]
[1734349210120,14.18153295,215.46,215.39,14.87770249]
[1734349210676,14.18153295,215.46,215.4,14.18153295]
[1734349211184,14.18153295,215.45,215.38,15.83103295]
[1734349211403,14.18153295,215.44,215.38,1.6495]
[1734349211708,14.18153295,215.39,215.37,30.0]
[1734349211888,20.0,215.46,215.37,30.0]
[1734349211889,14.18153295,215.38,215.37,30.0]
[1734349212076,14.18153295,215.39,215.37,30.0]
[1734349212274,14.18153295,215.4,215.37,30.0]
[1734349212470,14.18153295,215.41,215.37,30.0]
[1734349212691,14.18153295,215.42,215.37,30.0]
[1734349212883,14.18153295,215.43,215.37,30.0]
[1734349213083,14.18153295,215.44,215.37,44.18153295]
[1734349213320,14.18153295,215.4,215.37,30.0]
[1734349213483,14.18153295,215.39,215.37,30.0]
[1734349214020,14.18153295,215.43,215.37,30.0]
[1734349214178,14.18153295,215.41,215.37,30.0]
[1734349214385,14.18153295,215.4,215.37,30.0]
[1734349214879,14.18153295,215.39,215.37,30.0]
[1734349215282,14.18153295,215.38,215.37,30.0]
[1734349216106,14.18153295,215.39,215.37,30.0]
[1734349218499,14.18153295,215.38,215.37,30.0]
[1734349220436,18.55693,215.45,215.37,30.0]
[1734349220610,14.18153295,215.39,215.37,30.0]
[1734349221215,14.18153295,215.43,215.37,44.18153295]
[1734349221398,10.61875509,215.54,215.37,44.18153295]
[1734349221399,14.18153295,215.46,215.39,15.84013295]
[1734349221595,14.18153295,215.44,215.39,2.35475404]
[1734349221909,14.18153295,215.44,215.39,2.35479622]
[1734349222690,14.18153295,215.43,215.39,2.35479622]
[1734349223005,14.18153295,215.43,215.39,1.6586]
[1734349223894,14.18153295,215.45,215.39,1.6586]
[1734349224414,14.18153295,215.44,215.39,1.6586]
[1734349224715,14.18153295,215.43,215.39,1.6586]
[1734349224914,14.18153295,215.42,215.39,1.6586]
[1734349225490,14.18153295,215.41,215.39,1.6586]
[1734349225886,14.18153295,215.4,215.39,1.6586]
[1734349226110,14.18153295,215.4,215.37,30.0]
[1734349226332,14.18153295,215.39,215.37,30.0]
[1734349226926,14.18153295,215.38,215.37,30.0]
[1734349227236,14.18153295,215.39,215.37,30.0]
[1734349227533,14.18153295,215.49,215.37,30.0]
[1734349227534,14.18153295,215.42,215.37,30.0]
[1734349227709,14.18153295,215.38,215.37,30.0]
[1734349237934,14.18153295,215.39,215.37,30.0]
[1734349238940,14.18153295,215.4,215.37,30.0]
[1734349239238,14.18153295,215.41,215.37,30.0]
[1734349239416,14.18153295,215.4,215.37,30.0]
[1734349240222,14.18153295,215.42,215.37,30.0]
[1734349240430,14.18153295,215.49,215.37,30.0]
[1734349240431,14.18153295,215.39,215.37,30.0]
[1734349240634,14.18153295,215.4,215.37,30.0]
[1734349241038,14.18153295,215.41,215.37,30.0]
[1734349241419,14.18153295,215.39,215.37,30.0]
[1734349241814,14.18153295,215.4,215.37,30.0]
[1734349242419,14.18153295,215.41,215.37,30.0]
[1734349242619,14.18153295,215.45,215.38,14.18153295]
[1734349242821,14.18153295,215.49,215.42,14.18153295]
[1734349244116,14.18153295,215.5,215.43,14.18153295]
[1734349244317,14.18153295,215.51,215.43,14.18153295]
[1734349244544,14.18153295,215.51,215.39,0.69614502]
[1734349244545,14.18153295,215.51,215.44,14.18153295]
[1734349244728,14.18153295,215.52,215.45,15.81163295]
[1734349245236,14.18153295,215.51,215.45,1.6301]
[1734349245638,14.18153295,215.52,215.45,15.81163295]
[1734349246126,14.18153295,215.53,215.46,14.18153295]
[1734349247358,22.24338185,215.6,215.45,1.6301]
[1734349247359,14.18153295,215.5,215.45,1.6301]
[1734349247560,14.18153295,215.47,215.45,1.6301]
[1734349248061,14.18153295,215.48,215.45,1.6301]
[1734349248436,14.18153295,215.46,215.45,1.6301]
[1734349248644,14.18153295,215.46,215.39,14.18153295]
[1734349248645,14.18153295,215.46,215.39,1.5013]
[1734349248956,14.18153295,215.43,215.39,1.5013]
[1734349249851,14.18153295,215.41,215.39,1.5013]
[1734349250052,14.18153295,215.4,215.36,90.0]
[1734349250372,14.18153295,215.39,215.36,90.0]
[1734349251257,14.18153295,215.41,215.36,90.0]
[1734349251467,14.18153295,215.42,215.36,90.0]
[1734349251842,14.18153295,215.43,215.37,30.6962278]
[1734349252943,14.18153295,215.49,215.37,30.0]
[1734349252944,14.18153295,215.42,215.37,30.0]
[1734349254843,14.18153295,215.43,215.37,30.0]
[1734349255270,14.18153295,215.43,215.37,30.69621029]
[1734349255472,14.18153295,215.44,215.37,44.87774324]
[1734349255847,14.18153295,215.48,215.41,14.18153295]
[1734349256171,14.18153295,215.49,215.42,14.87761482]
[1734349256342,14.18153295,215.49,215.42,0.69608187]
[1734349256542,14.18153295,215.48,215.42,0.69608187]
[1734349257063,14.181533,215.58,215.42,14.87761482]
[1734349257064,14.18153295,215.49,215.42,14.87761482]
[1734349257369,14.18153295,215.48,215.43,1.5342]
[1734349259168,14.18153295,215.49,215.43,1.5342]
[1734349259371,14.18153295,215.5,215.44,0.69603601]
[1734349259674,14.18153295,215.51,215.44,14.87756896]
[1734349259843,14.18153295,215.5,215.44,0.69603601]
[1734349260290,14.18153295,215.49,215.44,0.69603601]
[1734349260441,14.18153295,215.45,215.43,1.5342]
[1734349260639,14.18153295,215.44,215.38,1.5435]
[1734349260845,14.18153295,215.43,215.38,1.5435]
[1734349261071,14.18153295,215.42,215.38,1.5435]
[1734349261848,14.18153295,215.41,215.38,1.5435]
[1734349262640,14.18153295,215.39,215.37,30.0]
[1734349262841,14.18153295,215.4,215.37,30.0]
[1734349263067,14.18153295,215.41,215.37,30.0]
[1734349264071,14.18153295,215.42,215.37,30.0]
[1734349264384,14.18153295,215.44,215.37,44.87774488]
[1734349264598,14.18153295,215.44,215.38,0.12549]
[1734349264882,14.18153295,215.44,215.39,0.69614675]
[1734349265184,6.2082,215.55,215.41,7.8498]
[1734349265397,14.18153295,215.45,215.41,7.8498]
[1734349265765,14.18153295,215.47,215.41,7.8498]
[1734349265979,14.18153295,215.47,215.42,0.12549]
[1734349266453,14.18153295,215.47,215.43,0.69602419]
[1734349266652,5.62155448,215.55,215.43,0.69602419]
[1734349266653,14.18153295,215.48,215.43,0.69602419]
[1734349267072,14.18153295,215.49,215.44,0.12549]
[1734349267280,14.18153295,215.49,215.45,0.69595553]
[1734349269280,14.18153295,215.48,215.45,0.69595553]
[1734349269475,14.18153295,215.47,215.43,0.12549]
[1734349270076,14.18153295,215.47,215.44,0.69598082]
[1734349270268,14.18153295,215.49,215.44,0.69598082]
[1734349270987,14.18153295,215.48,215.44,0.69598082]
[1734349271282,14.18153295,215.47,215.44,0.69598082]
[1734349271883,14.18153295,215.48,215.44,0.69598082]
[1734349272191,14.18153295,215.5,215.45,0.12549]
[1734349272365,14.18153295,215.5,215.46,0.69588737]
[1734349274265,14.18153295,215.51,215.47,0.12549]
[1734349274471,14.18153295,215.52,215.48,0.69585838]
[1734349276383,14.18153295,215.55,215.51,0.12549]
[1734349276589,14.181533,215.66,215.51,0.82121862]
[1734349276764,14.18153295,215.58,215.51,21.51435157]
[1734349277083,14.18153295,215.61,215.54,14.30702295]
[1734349277268,14.18153295,215.61,215.56,0.12549]
[1734349277459,14.18153295,215.61,215.57,0.69557416]
[1734349277965,15.79093295,215.71,215.57,0.69557416]
[1734349278159,14.18153295,215.62,215.58,0.12549]
[1734349278501,14.18153295,215.62,215.59,2.31660828]
[1734349278680,14.18153295,215.63,215.59,2.31660828]
[1734349278884,14.18153295,215.61,215.59,1.6211]
[1734349279087,14.18153295,215.6,215.59,1.6211]
[1734349279317,14.18153295,215.6,215.54,1.5297]
[1734349279481,14.18153295,215.55,215.54,1.5297]
[1734349280100,14.18153295,215.55,215.51,6.5116]
[1734349280284,14.18153295,215.54,215.51,6.5116]
[1734349280610,14.18153295,215.53,215.51,6.5116]
[1734349280908,14.18153295,215.54,215.51,6.5116]
[1734349281885,14.18153295,215.55,215.51,6.5116]
[1734349282284,14.18153295,215.54,215.51,6.5116]
[1734349282484,14.18153295,215.53,215.51,6.5116]
[1734349282893,14.18153295,215.55,215.51,6.5116]
[1734349283882,14.18153295,215.55,215.51,7.20735183]
[1734349284387,14.18153295,215.56,215.51,7.20735183]
[1734349284592,14.18153295,215.58,215.52,0.12549]
[1734349284797,14.18153295,215.58,215.53,0.69567451]
[1734349285114,14.18153295,215.6,215.54,0.12549]
[1734349285271,14.18153295,215.61,215.56,0.12549]
[1734349285474,14.18153295,215.62,215.56,0.12549]
[1734349285720,14.18153295,215.63,215.57,0.69557133]
[1734349285891,14.18153295,215.64,215.58,1.5704]
[1734349286200,14.18153295,215.64,215.59,0.69552168]
[1734349286376,14.18153295,215.65,215.59,0.69552168]
[1734349286578,14.18153295,215.66,215.6,0.12549]
[1734349286787,14.18153295,215.66,215.61,0.69544337]
[1734349287398,14.18153295,215.68,215.62,0.12549]
[1734349287610,1.6387,215.75,215.63,0.69536927]
[1734349287611,14.18153295,215.67,215.63,0.69536927]
[1734349288601,14.18153295,215.68,215.63,0.69536927]
[1734349289211,14.18153295,215.67,215.63,0.69536927]
[1734349289581,14.18153295,215.68,215.63,0.69536927]
[1734349290008,20.0,215.74,215.64,14.30702295]
[1734349290310,14.18153295,215.71,215.65,0.69528457]
[1734349290699,14.18153295,215.7,215.65,0.69528457]
[1734349291679,14.18153295,215.71,215.65,0.69528457]
[1734349291904,14.18153295,215.69,215.65,0.69528457]
[1734349292107,14.18153295,215.69,215.63,24.027864]
[1734349292493,14.18153295,215.65,215.61,6.5035]
[1734349293290,14.18153295,215.66,215.61,6.5035]
[1734349294686,14.18153295,215.65,215.61,6.5035]
[1734349294881,14.18153295,215.71,215.58,1.5704]
[1734349294882,14.18153295,215.62,215.58,1.5704]
[1734349295102,14.18153295,215.71,215.59,0.12549]
[1734349295103,14.18153295,215.61,215.59,0.12549]
[1734349295506,14.18153295,215.62,215.59,0.12549]
[1734349295706,14.18153295,215.71,215.58,1.5704]
[1734349295707,14.18153295,215.6,215.58,1.5704]
[1734349296415,14.18153295,215.61,215.58,1.5704]
[1734349296828,14.18153295,215.6,215.58,1.5704]
[1734349297317,14.18153295,215.61,215.58,1.5704]
[1734349299606,14.18153295,215.62,215.58,1.5704]
[1734349300193,14.18153295,215.63,215.58,1.5704]
[1734349300516,14.18153295,215.64,215.59,0.94645804]
[1734349300905,14.18153295,215.66,215.59,0.94645804]
[1734349301121,14.18153295,215.66,215.59,15.12799099]
[1734349301320,14.18153295,215.66,215.61,0.25098]
[1734349301614,14.18153295,215.67,215.61,0.94633673]
[1734349302116,14.18153295,215.67,215.58,1.5704]
[1734349302117,14.18153295,215.64,215.59,23.776884]
[1734349302335,14.18153295,215.64,215.58,1.5704]
[1734349302336,14.18153295,215.63,215.58,1.5704]
[1734349302496,14.18153295,215.71,215.58,1.5704]
[1734349302497,14.18153295,215.61,215.58,1.5704]
[1734349302820,14.18153295,215.62,215.58,1.5704]
[1734349304891,14.18153295,215.6,215.58,1.5704]
[1734349305096,14.18153295,215.59,215.56,6.4264]
[1734349305298,14.18153295,215.58,215.56,6.4264]
[1734349306309,14.18153295,215.59,215.56,6.4264]
[1734349307317,14.18153295,215.57,215.53,1.6385]
[1734349307519,14.18153295,215.56,215.53,1.6385]
[1734349307934,14.18153295,215.58,215.54,0.12549]
[1734349310902,23.776884,215.7,215.54,15.12815712]
[1734349310903,14.18153295,215.62,215.54,15.12815712]
[1734349312600,14.18153295,215.62,215.56,0.25098]
[1734349312803,14.18153295,215.62,215.56,0.94650609]
[1734349313007,14.18153295,215.63,215.56,15.12803904]